bitfinex-derivatives/quotes_BTCF0:USTF0_20210409
["timestamp","ask_amount","ask_price","bid_price","bid_amount"]
[1618004962615,1.5,58449.0,58439.0,0.09158774]
[1618004962616,3.3253,58444.0,58443.0,0.36508783]
[1618004962828,5.51207455,58444.0,58442.0,0.36508844]
[1618004963316,5.06361655,58444.0,58435.0,0.44580339]
[1618004963515,1.5,58442.0,58435.0,0.44580339]
[1618004963815,1.5,58442.0,58434.0,0.44580383]
[1618004964019,1.5,58442.0,58436.0,0.06106115]
[1618004964224,1.5,58442.0,58431.0,0.44579966]
[1618004964225,0.2,58441.0,58431.0,0.44579966]
[1618004964421,0.2,58441.0,58415.0,0.06106175]
[1618004964422,1.58939367,58440.0,58429.0,0.44541146]
[1618004964617,1.0,58432.0,58429.0,0.44541146]
[1618004964920,0.10725655,58430.0,58424.0,0.44545438]
[1618004965117,1.5,58429.0,58424.0,0.44545438]
[1618004965318,1.5,58429.0,58408.0,0.566936]
[1618004965319,1.5,58429.0,58423.0,0.44544971]
[1618004965518,1.5,58424.0,58419.0,0.44504591]
[1618004965918,1.5,58424.0,58420.0,0.44504482]
[1618004966118,1.5,58424.0,58420.0,0.06107028]
[1618004966419,1.5,58424.0,58418.0,0.44467168]
[1618004966918,0.10725655,58419.0,58418.0,0.44467168]
[1618004967128,0.25391655,58419.0,58418.0,0.44467168]
[1618004967321,0.25391655,58419.0,58416.0,0.44435737]
[1618004967523,2.6184,58417.0,58416.0,0.44435737]
[1618004968124,2.6184,58417.0,58415.0,0.44437098]
[1618004968332,2.6184,58417.0,58413.0,0.44409201]
[1618004968725,2.6184,58417.0,58402.0,0.06107268]
[1618004968726,2.6184,58417.0,58411.0,0.44411044]
[1618004968925,0.10725655,58412.0,58411.0,0.44411044]
[1618004969625,1.10725655,58412.0,58409.0,0.4438299]
[1618004969931,1.10725655,58412.0,58408.0,0.44384861]
[1618004970126,2.5488,58409.0,58407.0,0.44381857]
[1618004970525,3.5488,58409.0,58404.0,0.44356]
[1618004970724,1.0,58409.0,58404.0,0.44356]
[1618004970924,0.10725655,58405.0,58404.0,0.44356]
[1618004971124,3.10917655,58405.0,58404.0,0.44356]
[1618004971727,3.10917655,58405.0,58403.0,0.44328867]
[1618004971927,3.10917655,58405.0,58401.0,0.245]
[1618004971928,3.10917655,58405.0,58404.0,0.06108009]
[1618004972128,3.10917655,58405.0,58402.0,0.50437328]
[1618004972129,4.10917655,58405.0,58402.0,0.50437328]
[1618004972428,4.10917655,58405.0,58402.0,0.06108012]
[1618004973329,1.0,58403.0,58402.0,0.06108012]
[1618004974931,0.25417655,58405.0,58402.0,0.06108012]
[1618004974932,1.0,58404.0,58402.0,0.06108012]
[1618004975134,2.9028,58403.0,58402.0,0.06108012]
[1618004977937,0.25417655,58405.0,58402.0,0.06108012]
[1618004978138,0.25417655,58405.0,58404.0,3.4911]
[1618004978838,0.10725655,58405.0,58404.0,3.4911]
[1618004980458,0.10623855,58405.0,58404.0,3.4911]
[1618004980942,0.10623855,58405.0,58404.0,3.86835655]
[1618004981341,0.10623855,58405.0,58404.0,4.31008717]
[1618004981540,2.8445,58428.0,58404.0,4.31008717]
[1618004981941,2.8445,58428.0,58408.0,0.44172059]
[1618004982341,2.8445,58428.0,58409.0,0.27]
[1618004982743,2.8445,58428.0,58410.0,0.06107504]
[1618004982946,2.8445,58428.0,58413.0,0.10725655]
[1618004983444,1.0,58434.0,58413.0,0.10725655]
[1618004983643,1.0,58434.0,58431.0,2.8348]
[1618004983944,0.43740934,58458.0,58431.0,0.10212]
[1618004984145,1.0,58447.0,58431.0,0.10212]
[1618004984444,3.3606,58460.0,58441.0,3.4639]
[1618004984445,1.0,58445.0,58441.0,3.4639]
[1618004984844,3.3606,58460.0,58441.0,3.4639]
[1618004985043,0.10725655,58442.0,58441.0,3.4639]
[1618004985645,0.10725655,58442.0,58431.0,0.10212]
[1618004985844,0.10725655,58442.0,58436.0,2.5863]
[1618004986546,0.10725655,58442.0,58431.0,0.10212]
[1618004986746,2.7761,58433.0,58431.0,0.10212]
[1618004986946,0.10725655,58432.0,58431.0,0.10212]
[1618004989447,0.10725655,58432.0,58430.0,0.10725655]
[1618004992953,2.9882,58431.0,58430.0,0.10725655]
[1618005006872,2.9882,58431.0,58428.0,0.30221611]
[1618005008374,2.9882,58431.0,58429.0,0.3023704]
[1618005009475,2.9882,58431.0,58430.0,0.3024995]
[1618005011977,2.9882,58431.0,58429.0,0.30270663]
[1618005012179,3.09399,58431.0,58429.0,0.30270663]
[1618005012578,1.0,58430.0,58429.0,0.30270663]
[1618005013381,1.0,58430.0,58427.0,0.30295506]
[1618005013581,1.0,58430.0,58428.0,0.30297661]
[1618005013883,3.4115,58429.0,58428.0,0.30297661]
[1618005014082,3.4115,58429.0,58427.0,0.30298235]
[1618005014483,3.4115,58429.0,58428.0,0.25242093]
[1618005015085,3.4115,58429.0,58424.0,0.36374605]
[1618005015286,3.4115,58429.0,58420.0,0.44436569]
[1618005015287,0.10725655,58425.0,58420.0,0.44436569]
[1618005015586,0.10725655,58425.0,58424.0,0.36392868]
[1618005015787,1.10725655,58425.0,58424.0,0.36392868]
[1618005015986,1.10725655,58425.0,58424.0,0.63392868]
[1618005016389,1.10725655,58425.0,58424.0,0.69500358]
[1618005017487,3.60035655,58425.0,58424.0,0.69500358]
[1618005017687,3.60035655,58425.0,58424.0,0.42500358]
[1618005018089,3.60035655,58425.0,58424.0,0.36392868]
[1618005019490,3.60035655,58425.0,58424.0,0.80980034]
[1618005023093,3.60035655,58425.0,58424.0,0.36392868]
[1618005023493,3.60035655,58425.0,58424.0,0.8101911]
[1618005023695,3.60035655,58425.0,58424.0,0.36392868]
[1618005025495,3.74151655,58425.0,58424.0,0.36392868]
[1618005027702,3.74151655,58425.0,58424.0,0.42500755]
[1618005027997,3.74151655,58425.0,58424.0,0.36392868]
[1618005028196,3.74151655,58425.0,58424.0,0.42500599]
[1618005028396,3.74151655,58425.0,58424.0,0.36392868]
[1618005029096,2.74151655,58425.0,58424.0,0.36392868]
[1618005029399,3.74151655,58425.0,58424.0,0.36392868]
[1618005030398,3.74151655,58425.0,58421.0,0.4462528]
[1618005030598,3.74151655,58425.0,58424.0,0.36512661]
[1618005031018,2.74151655,58425.0,58424.0,0.36512661]
[1618005031399,3.74151655,58425.0,58424.0,0.36512661]
[1618005033403,4.10245143,58425.0,58424.0,0.36512661]
[1618005033601,3.74151655,58425.0,58424.0,0.36512661]
[1618005034504,4.1025031,58425.0,58424.0,0.36512661]
[1618005035701,5.6025031,58425.0,58424.0,0.36512661]
[1618005042010,5.6025031,58425.0,58423.0,0.36544314]
[1618005042220,1.96401242,58424.0,58423.0,0.36544314]
[1618005042442,1.96401242,58424.0,58421.0,0.36544951]
[1618005042443,2.40494844,58424.0,58421.0,0.36544951]
[1618005042825,1.60313593,58423.0,58422.0,0.36541258]
[1618005043011,1.96391813,58423.0,58422.0,0.36541258]
[1618005043411,2.96391813,58423.0,58422.0,0.36541258]
[1618005043712,2.96391813,58423.0,58421.0,0.36537679]
[1618005043912,0.47382364,58422.0,58421.0,0.36537679]
[1618005044314,1.47382364,58422.0,58421.0,0.36537679]
[1618005044712,4.55352364,58422.0,58421.0,0.36537679]
[1618005045113,4.55352364,58422.0,58421.0,0.66983538]
[1618005046213,6.05352364,58422.0,58421.0,0.66983538]
[1618005046413,4.55352364,58422.0,58421.0,0.66983538]
[1618005050320,4.0797,58422.0,58421.0,0.66983538]
[1618005054427,4.44034321,58422.0,58421.0,0.66983538]
[1618005057834,4.0797,58422.0,58421.0,0.66983538]
[1618005058135,4.44027358,58422.0,58421.0,0.66983538]
[1618005060240,3.44027358,58422.0,58421.0,0.66983538]
[1618005060637,4.44027358,58422.0,58421.0,0.66983538]
[1618005061541,3.44027358,58422.0,58421.0,0.66983538]
[1618005061941,4.44027358,58422.0,58421.0,0.66983538]
[1618005062341,3.44027358,58422.0,58421.0,0.66983538]
[1618005065145,4.44027358,58422.0,58421.0,0.66983538]
[1618005072654,4.88115686,58422.0,58421.0,0.66983538]
[1618005074659,4.93165686,58422.0,58421.0,0.66983538]
[1618005075968,4.88115686,58422.0,58421.0,0.66983538]
[1618005081970,4.88115686,58422.0,58421.0,1.11731165]
[1618005083874,4.88115686,58422.0,58421.0,0.66983538]
[1618005085675,4.88115686,58422.0,58421.0,1.11740853]
[1618005086477,4.88115686,58422.0,58421.0,0.66983538]
[1618005086678,4.88115686,58422.0,58421.0,0.66763538]
[1618005086878,4.88115686,58422.0,58421.0,0.72872412]
[1618005087078,5.3825771,58422.0,58421.0,0.72872412]
[1618005087479,5.3825771,58422.0,58421.0,0.66763538]
[1618005087480,6.38115686,58422.0,58421.0,0.66763538]
[1618005088479,6.88255048,58422.0,58421.0,0.66763538]
[1618005089279,6.88255048,58422.0,58421.0,0.65913538]
[1618005089579,6.88255048,58422.0,58421.0,0.72022488]
[1618005089780,5.88255048,58422.0,58421.0,0.72022488]
[1618005089979,6.88255048,58422.0,58421.0,0.36554809]
[1618005090179,6.88255048,58422.0,58421.0,0.30445859]
[1618005090379,6.88255048,58422.0,58421.0,0.36554976]
[1618005090579,5.38255048,58422.0,58421.0,0.30445859]
[1618005091179,6.88255048,58422.0,58421.0,0.30445859]
[1618005092383,6.88255048,58422.0,58420.0,0.30511072]
[1618005093286,1.5,58420.0,58417.0,0.30507661]
[1618005093786,1.04878496,58418.0,58417.0,0.30507661]
[1618005093986,3.54878496,58418.0,58417.0,0.30507661]
[1618005094188,3.66938414,58418.0,58417.0,0.30507661]
[1618005094387,3.93458249,58418.0,58416.0,0.30508547]
[1618005094790,0.2,58417.0,58409.0,0.44745677]
[1618005094989,1.52777654,58417.0,58408.0,0.44735896]
[1618005095189,0.44058721,58411.0,58410.0,0.06109695]
[1618005095389,0.59410721,58411.0,58410.0,0.06109695]
[1618005095589,0.59410721,58411.0,58408.0,0.44735896]
[1618005095889,0.10725655,58409.0,58408.0,0.44735896]
[1618005096289,1.10725655,58409.0,58408.0,0.44735896]
[1618005096593,1.22835448,58409.0,58408.0,0.44735896]
[1618005097096,1.22835448,58409.0,58407.0,0.44726473]
[1618005097490,0.12107665,58408.0,58407.0,0.44726473]
[1618005097790,0.12107665,58408.0,58406.0,0.44718932]
[1618005098190,1.0,58407.0,58406.0,0.44718932]
[1618005098591,1.12103694,58407.0,58406.0,0.44718932]
[1618005101003,1.12103694,58407.0,58405.0,0.44700363]
[1618005101195,1.12103694,58407.0,58406.0,0.06109754]
[1618005101396,1.12103694,58407.0,58405.0,0.44700363]
[1618005101796,0.12097144,58406.0,58405.0,0.44700363]
[1618005102998,0.12097144,58406.0,58404.0,0.44689863]
[1618005103199,1.12097144,58406.0,58404.0,0.44689863]
[1618005103598,1.0,58406.0,58404.0,0.44689863]
[1618005104201,1.0,58406.0,58403.0,0.50795672]
[1618005104602,1.0,58405.0,58403.0,0.50795672]
[1618005105099,1.0,58404.0,58403.0,0.50795672]
[1618005106700,1.0,58404.0,58403.0,0.06109756]
[1618005106902,1.0,58404.0,58403.0,0.50780656]
[1618005107601,1.0,58404.0,58403.0,0.06109756]
[1618005114610,1.0,58404.0,58403.0,0.42645077]
[1618005114911,1.0,58404.0,58403.0,0.42645363]
[1618005115109,4.518,58404.0,58403.0,0.42645363]
[1618005120712,3.518,58404.0,58403.0,0.42645363]
[1618005121112,4.518,58404.0,58403.0,0.42645363]
[1618005124516,4.518,58404.0,58403.0,0.73089108]
[1618005131828,4.87766804,58404.0,58403.0,0.73089108]
[1618005132423,4.87766804,58404.0,58403.0,0.36553787]
[1618005132925,4.87766804,58404.0,58403.0,0.73094721]
[1618005133726,1.35966804,58404.0,58403.0,0.73094721]
[1618005134127,1.35966804,58404.0,58403.0,3.50554721]
[1618005135427,1.35966804,58404.0,58403.0,0.73094721]
[1618005135627,4.80026804,58404.0,58403.0,0.73094721]
[1618005136931,4.4406,58404.0,58403.0,0.73094721]
[1618005137532,3.4406,58404.0,58403.0,0.73094721]
[1618005138134,3.4406,58404.0,58403.0,0.66984679]
[1618005138334,3.4406,58404.0,58403.0,0.73094761]
[1618005139134,3.80046349,58404.0,58403.0,0.73094761]
[1618005139535,3.4406,58404.0,58403.0,0.73094761]
[1618005139737,3.80049596,58404.0,58403.0,0.73094761]
[1618005142948,3.85129596,58404.0,58403.0,0.73094761]
[1618005143149,4.80049596,58404.0,58403.0,0.73094761]
[1618005145945,5.24053065,58404.0,58403.0,0.73094761]
[1618005152854,4.24053065,58404.0,58403.0,0.73094761]
[1618005153054,5.24053065,58404.0,58403.0,0.73094761]
[1618005153254,5.24053065,58404.0,58403.0,0.66984679]
[1618005153657,4.24053065,58404.0,58403.0,0.73095107]
[1618005155758,4.24053065,58404.0,58403.0,1.17857523]
[1618005157862,4.24053065,58404.0,58403.0,0.73095107]
[1618005158063,5.24053065,58404.0,58403.0,0.73095107]
[1618005161970,5.29153065,58404.0,58403.0,0.73095107]
[1618005162270,5.24053065,58404.0,58403.0,0.73095107]
[1618005165978,0.79993065,58404.0,58403.0,0.73095107]
[1618005166177,0.79993065,58404.0,58403.0,3.70615107]
[1618005166485,1.79993065,58404.0,58403.0,3.70615107]
[1618005166678,1.92725584,58404.0,58403.0,3.34074173]
[1618005167477,5.19665584,58404.0,58403.0,3.34074173]
[1618005168083,5.46602271,58404.0,58403.0,3.7069351]
[1618005170589,1.19662271,58404.0,58403.0,3.7069351]
[1618005170789,1.19662271,58404.0,58403.0,3.8440651]
[1618005170990,0.79993065,58404.0,58403.0,3.8440651]
[1618005173292,0.79993065,58404.0,58403.0,4.29165445]
[1618005173793,0.35989596,58404.0,58403.0,4.29165445]
[1618005173994,0.48738123,58404.0,58403.0,4.29165445]
[1618005174194,0.35989596,58404.0,58403.0,4.398911]
[1618005179800,0.36092115,58405.0,58403.0,4.398911]
[1618005180001,0.12235814,58404.0,58403.0,4.398911]
[1618005180200,0.36092115,58405.0,58403.0,4.398911]
[1618005180500,0.36092115,58405.0,58404.0,1.27151357]
[1618005184704,0.36092115,58405.0,58404.0,1.17986271]
[1618005184905,3.06752115,58405.0,58404.0,3.80446271]
[1618005185307,3.18989086,58405.0,58404.0,3.89611279]
[1618005186008,0.48329086,58405.0,58404.0,3.89611279]
[1618005186413,0.36092115,58405.0,58404.0,3.89611279]
[1618005186616,0.4832948,58405.0,58404.0,3.89611279]
[1618005186818,0.4832948,58405.0,58404.0,1.27151279]
[1618005186819,0.36092115,58405.0,58404.0,1.27151279]
[1618005187013,0.36092115,58405.0,58404.0,1.17986271]
[1618005187208,3.92202115,58405.0,58404.0,1.17986271]
[1618005187611,4.04441851,58405.0,58404.0,1.17986271]
[1618005190025,4.04441851,58405.0,58404.0,1.11876213]
[1618005190712,4.04441851,58405.0,58404.0,0.67125728]
[1618005192717,4.04441851,58405.0,58404.0,1.11864675]
[1618005193414,4.48532601,58405.0,58404.0,0.67125728]
[1618005193616,0.92422601,58405.0,58404.0,0.67125728]
[1618005194015,0.80182865,58405.0,58404.0,0.67125728]
[1618005194517,0.36092115,58405.0,58404.0,0.67125728]
[1618005194716,0.8018051,58405.0,58404.0,0.67125728]
[1618005194917,0.48556148,58405.0,58404.0,0.67125728]
[1618005195417,0.92643198,58405.0,58404.0,0.67125728]
[1618005196523,0.36092115,58405.0,58404.0,0.67125728]
[1618005196726,0.48556823,58405.0,58404.0,1.11863713]
[1618005197120,0.92647677,58405.0,58404.0,0.67125728]
[1618005197320,0.92647677,58405.0,58404.0,0.73236046]
[1618005197521,0.92647677,58405.0,58404.0,0.67125728]
[1618005201423,1.92647677,58405.0,58404.0,0.67125728]
[1618005203225,1.92647677,58405.0,58404.0,0.30511695]
[1618005206646,0.92647677,58405.0,58404.0,0.30511695]
[1618005206928,0.92647677,58405.0,58404.0,2.84861695]
[1618005207130,0.92647677,58405.0,58404.0,3.21465824]
[1618005207429,0.80182969,58405.0,58404.0,3.27576505]
[1618005207647,0.80182969,58405.0,58404.0,0.73226505]
[1618005207951,0.80182969,58405.0,58404.0,0.67115824]
[1618005208147,3.35172969,58405.0,58404.0,0.67115824]
[1618005208737,3.7442234,58405.0,58404.0,0.67115824]
[1618005209549,3.47634522,58405.0,58404.0,0.67115824]
[1618005210544,3.03543668,58405.0,58404.0,0.67115824]
[1618005210946,3.47633019,58405.0,58404.0,0.67115824]
[1618005213638,4.47633019,58405.0,58404.0,0.67115824]
[1618005213838,3.47633019,58405.0,58404.0,0.67115824]
[1618005214339,3.47633019,58405.0,58404.0,0.30511695]
[1618005214539,4.47633019,58405.0,58404.0,0.30511695]
[1618005215540,1.92643019,58405.0,58404.0,0.30511695]
[1618005215743,4.87663019,58405.0,58404.0,4.00234887]
[1618005216041,4.87663019,58405.0,58404.0,3.63631695]
[1618005216240,2.18382324,58405.0,58404.0,0.36622496]
[1618005216441,2.18382324,58405.0,58404.0,0.30511695]
[1618005216442,0.92643019,58405.0,58404.0,0.30511695]
[1618005216641,1.92643019,58405.0,58404.0,0.30511695]
[1618005216843,1.80181466,58405.0,58404.0,0.30511695]
[1618005217243,1.91008252,58405.0,58404.0,0.30511695]
[1618005219848,2.41072923,58405.0,58404.0,0.30511695]
[1618005220747,1.91008252,58405.0,58404.0,0.30511695]
[1618005224453,1.91008252,58405.0,58404.0,3.04891695]
[1618005224955,1.91008252,58405.0,58404.0,3.11002563]
[1618005227358,0.91008252,58405.0,58404.0,3.11002563]
[1618005228159,0.91008252,58405.0,58404.0,0.36622563]
[1618005228859,0.91008252,58405.0,58404.0,0.30511695]
[1618005229061,0.91008252,58405.0,58404.0,0.36622635]
[1618005229263,4.15698252,58405.0,58404.0,0.36622635]
[1618005231464,4.15698252,58405.0,58404.0,0.73222079]
[1618005237974,4.15698252,58405.0,58404.0,0.36622635]
[1618005238174,4.15698252,58405.0,58404.0,0.73223918]
[1618005245084,4.15698252,58405.0,58404.0,0.36622635]
[1618005245485,4.15698252,58405.0,58404.0,0.73235873]
[1618005247199,4.15698252,58405.0,58404.0,0.36622635]
[1618005247588,4.65794321,58405.0,58404.0,0.36622635]
[1618005248992,5.65794321,58405.0,58404.0,0.36622635]
[1618005250195,4.65794321,58405.0,58404.0,0.36622635]
[1618005250595,4.65794321,58405.0,58404.0,0.73250344]
[1618005250997,4.15698252,58405.0,58404.0,0.73250344]
[1618005251697,4.65800853,58405.0,58404.0,0.36622635]
[1618005252300,4.65800853,58405.0,58404.0,0.73252128]
[1618005256203,5.65800853,58405.0,58404.0,0.73252128]
[1618005257607,5.70900853,58405.0,58404.0,0.73252128]
[1618005258006,5.65800853,58405.0,58404.0,0.73252128]
[1618005259306,5.70930853,58405.0,58404.0,0.73252128]
[1618005260109,5.65800853,58405.0,58404.0,0.73252128]
[1618005260307,5.65800853,58405.0,58404.0,0.36622635]
[1618005264314,5.65800853,58405.0,58404.0,0.30511695]
[1618005268921,5.65800853,58405.0,58403.0,0.55031529]
[1618005269220,1.68710109,58404.0,58403.0,0.55031529]
[1618005269520,1.81116109,58404.0,58403.0,0.55031529]
[1618005269721,2.81116109,58404.0,58403.0,0.55031529]
[1618005271622,3.22276226,58404.0,58403.0,0.55031529]
[1618005272324,2.54641225,58404.0,58403.0,0.245]
[1618005277330,2.59791225,58404.0,58403.0,0.245]
[1618005277531,2.54641225,58404.0,58403.0,0.245]
[1618005277731,2.54641225,58404.0,58403.0,0.2241]
[1618005278530,2.74641225,58404.0,58403.0,0.2241]
[1618005280032,2.54641225,58404.0,58403.0,0.2241]
[1618005280332,2.79741225,58404.0,58403.0,0.2241]
[1618005280631,2.54641225,58404.0,58403.0,0.1897]
[1618005281433,2.74641225,58404.0,58403.0,0.1897]
[1618005281632,2.79771225,58404.0,58403.0,0.1897]
[1618005281933,3.35824783,58404.0,58403.0,0.1897]
[1618005287137,3.35824783,58404.0,58390.0,2.9598367]
[1618005287738,0.79984458,58391.0,58390.0,2.9598367]
[1618005288838,0.90710113,58391.0,58390.0,2.9598367]
[1618005289038,1.00349113,58391.0,58390.0,2.9598367]
[1618005289338,2.12675698,58391.0,58390.0,2.9598367]
[1618005289538,2.17865698,58391.0,58390.0,2.9598367]
[1618005290642,2.12675698,58391.0,58390.0,2.9598367]
[1618005291642,2.17735698,58391.0,58390.0,2.9598367]
[1618005292344,5.67575698,58391.0,58390.0,2.9598367]
[1618005292643,5.94296965,58391.0,58390.0,2.9598367]
[1618005294046,4.94296965,58391.0,58390.0,2.9598367]
[1618005294245,5.94296965,58391.0,58390.0,2.9598367]
[1618005294748,5.89236965,58391.0,58390.0,2.9598367]
[1618005295148,5.89236965,58391.0,58390.0,2.6549]
[1618005295447,5.89236965,58391.0,58390.0,2.95963469]
[1618005295947,2.39396965,58391.0,58390.0,0.30473469]
[1618005296350,2.39396965,58391.0,58387.0,0.36576363]
[1618005296351,2.12675698,58391.0,58389.0,0.30473786]
[1618005296748,0.91636218,58390.0,58389.0,0.30473786]
[1618005297048,1.17930636,58390.0,58389.0,0.30473786]
[1618005297248,1.91636218,58390.0,58389.0,0.30473786]
[1618005298651,1.91636218,58390.0,58389.0,3.62523786]
[1618005302350,0.91636218,58390.0,58389.0,3.62523786]
[1618005302951,0.91636218,58390.0,58389.0,0.30473786]
[1618005303154,1.91636218,58390.0,58389.0,0.30473786]
[1618005303452,0.91636218,58390.0,58389.0,3.85843786]
[1618005303852,1.91636218,58390.0,58389.0,3.85843786]
[1618005308854,1.0,58390.0,58389.0,3.5537]
[1618005309356,1.79967312,58390.0,58389.0,0.30470457]
[1618005311557,5.00577312,58390.0,58389.0,0.30470457]
[1618005311961,5.26866077,58390.0,58389.0,0.30470457]
[1618005312259,4.2061,58390.0,58376.0,2.5453]
[1618005312458,5.00568198,58390.0,58389.0,0.30472069]
[1618005317366,5.00568198,58390.0,58377.0,0.06112114]
[1618005317367,5.5050497,58390.0,58383.0,0.30482182]
[1618005317566,2.2989497,58390.0,58380.0,0.30479986]
[1618005317766,3.1741,58381.0,58380.0,0.30479986]
[1618005317967,4.11887512,58381.0,58378.0,0.30480271]
[1618005318368,0.79840328,58379.0,58378.0,0.30480271]
[1618005318969,0.90565983,58379.0,58378.0,0.30480271]
[1618005319169,2.7495,58378.0,58377.0,0.30476661]
[1618005319570,3.67279064,58378.0,58377.0,0.30476661]
[1618005321072,0.92329064,58378.0,58377.0,0.30476661]
[1618005321272,0.92329064,58378.0,58376.0,0.30475787]
[1618005321496,0.35907157,58377.0,58376.0,0.30475787]
[1618005321773,0.79791466,58377.0,58376.0,0.30475787]
[1618005322573,0.35907157,58377.0,58376.0,0.30475787]
[1618005322778,0.48430347,58377.0,58376.0,0.30475787]
[1618005322974,0.35907157,58377.0,58376.0,0.30475787]
[1618005323173,3.43087157,58377.0,58376.0,0.30475787]
[1618005323575,3.55605827,58377.0,58376.0,0.30475787]
[1618005330481,3.55605827,58377.0,58375.0,0.30457809]
[1618005330883,0.4843727,58376.0,58375.0,0.30457809]
[1618005332688,0.5358727,58376.0,58375.0,0.30457809]
[1618005333089,0.4843727,58376.0,58375.0,0.30457809]
[1618005334192,0.5352727,58376.0,58375.0,0.30457809]
[1618005334495,0.4843727,58376.0,58375.0,0.30457809]
[1618005343299,0.35894963,58376.0,58375.0,0.30457809]
[1618005343496,0.4872015,58376.0,58375.0,0.30457809]
[1618005343695,4.00834963,58376.0,58375.0,0.30457809]
[1618005343896,4.1366055,58376.0,58375.0,0.30457809]
[1618005345899,0.4872055,58376.0,58375.0,0.30457809]
[1618005346302,0.35894963,58376.0,58375.0,0.30457809]
[1618005346620,4.63980242,58376.0,58368.0,0.4859]
[1618005346902,1.29363838,58369.0,58368.0,0.4859]
[1618005347129,1.40089493,58369.0,58368.0,0.4859]
[1618005347324,0.46551171,58369.0,58368.0,4.19556554]
[1618005347904,0.9298574,58369.0,58368.0,3.82991161]
[1618005348302,1.36809123,58369.0,58368.0,3.5252]
[1618005354819,1.51154123,58369.0,58368.0,3.5252]
[1618005355811,1.21265713,58369.0,58368.0,3.5252]
[1618005356210,1.06920713,58369.0,58368.0,3.5252]
[1618005359311,1.06920713,58369.0,58364.0,0.79726753]
[1618005359512,3.0787,58364.0,58363.0,0.30446299]
[1618005359713,3.0787,58364.0,58362.0,0.30446317]
[1618005359914,0.48073943,58363.0,58360.0,0.30446723]
[1618005360314,0.35794378,58361.0,58360.0,0.30446723]
[1618005361215,0.58799727,58361.0,58360.0,0.30446723]
[1618005362416,0.58799727,58361.0,58360.0,3.52346723]
[1618005362618,0.10725655,58361.0,58360.0,3.52346723]
[1618005362816,0.10725655,58361.0,58360.0,3.58461273]
[1618005364017,0.10725655,58361.0,58360.0,3.52346723]
[1618005364417,0.46525358,58361.0,58360.0,3.52346723]
[1618005365118,0.58805935,58361.0,58360.0,3.52346723]
[1618005367422,0.58805935,58361.0,58360.0,3.219]
[1618005369828,0.58805935,58361.0,58359.0,0.3045208]
[1618005370230,0.48074931,58360.0,58359.0,0.3045208]
[1618005370429,3.74584931,58360.0,58359.0,0.3045208]
[1618005371929,3.2651,58360.0,58359.0,0.3045208]
[1618005372429,3.62315064,58360.0,58359.0,0.3045208]
[1618005372731,3.2651,58360.0,58359.0,0.3045208]
[1618005372932,3.62310625,58360.0,58359.0,0.3045208]
[1618005375836,3.92158617,58360.0,58359.0,0.3045208]
[1618005376637,1.5902534,58360.0,58349.0,0.30475405]
[1618005376938,1.5902534,58360.0,58357.0,0.035]
[1618005377136,0.10725655,58361.0,58359.0,2.9655]
[1618005377636,1.26885105,58360.0,58357.0,0.035]
[1618005377837,2.7602,58358.0,58357.0,0.035]
[1618005378237,4.32869435,58358.0,58357.0,0.035]
[1618005378437,4.02849859,58358.0,58357.0,0.035]
[1618005378637,4.32873168,58358.0,58357.0,0.035]
[1618005381241,4.02849859,58358.0,58357.0,0.035]
[1618005382744,3.59135823,58358.0,58357.0,0.035]
[1618005383544,4.02843998,58358.0,58357.0,0.035]
[1618005384247,3.59135823,58358.0,58357.0,0.035]
[1618005384947,4.02839256,58358.0,58357.0,0.035]
[1618005386451,3.59135823,58358.0,58357.0,0.035]
[1618005387651,4.02837338,58358.0,58357.0,0.035]
[1618005388452,3.59135823,58358.0,58357.0,0.035]
[1618005388751,4.0283653,58358.0,58357.0,0.035]
[1618005389152,3.59135823,58358.0,58357.0,0.035]
[1618005389552,4.02838442,58358.0,58357.0,0.035]
[1618005392254,0.17539803,58358.0,58357.0,0.035]
[1618005392554,1.26809926,58358.0,58357.0,0.035]
[1618005392864,1.09270123,58358.0,58357.0,0.035]
[1618005399663,1.14330123,58358.0,58357.0,0.035]
[1618005399863,4.36048311,58358.0,58357.0,0.035]
[1618005400063,4.84203379,58358.0,58357.0,0.035]
[1618005401566,5.04203379,58358.0,58357.0,0.035]
[1618005401968,6.04203379,58358.0,58357.0,0.035]
[1618005402193,6.59666986,58358.0,58357.0,0.0339805]
[1618005402667,6.39666986,58358.0,58357.0,0.0339805]
[1618005402867,7.08972139,58358.0,58357.0,0.0339805]
[1618005403067,6.39666986,58358.0,58357.0,0.0339805]
[1618005403603,7.08947214,58358.0,58357.0,0.0339805]
[1618005403868,6.34606986,58358.0,58357.0,0.0339805]
[1618005404567,6.34606986,58358.0,58357.0,3.0809805]
[1618005408171,5.34606986,58358.0,58357.0,3.0809805]
[1618005408370,6.34606986,58358.0,58357.0,3.0809805]
[1618005409272,6.34606986,58358.0,58357.0,0.0339805]
[1618005410173,5.34606986,58358.0,58357.0,0.0339805]
[1618005412274,5.34606986,58358.0,58357.0,0.03296083]
[1618005413778,5.34606986,58358.0,58343.0,3.82071]
[1618005413977,1.08744549,58344.0,58343.0,3.82071]
[1618005415079,1.05448466,58344.0,58343.0,3.82071]
[1618005415679,1.16174121,58344.0,58343.0,3.82071]
[1618005416080,1.34236075,58344.0,58343.0,3.82071]
[1618005419986,1.34236075,58344.0,58343.0,0.14411]
[1618005420186,1.34236075,58344.0,58333.0,0.07]
[1618005420688,0.29657768,58334.0,58333.0,0.07]
[1618005421586,0.40383423,58334.0,58333.0,0.07]
[1618005422186,0.40383423,58334.0,58333.0,3.2008]
[1618005426495,0.58437261,58334.0,58333.0,3.2008]
[1618005429904,0.58437261,58334.0,58333.0,3.30188]
[1618005432400,0.29657768,58334.0,58333.0,3.30188]
[1618005433711,0.40383423,58334.0,58333.0,3.30188]
[1618005437104,0.43516713,58340.0,58333.0,4.57188]
[1618005437404,0.43573369,58349.0,58333.0,4.87613437]
[1618005437604,0.43573369,58349.0,58339.0,1.0]
[1618005437804,0.43573369,58349.0,58348.0,0.10725655]
[1618005438004,0.43579222,58350.0,58349.0,1.0]
[1618005438505,0.06389637,58350.0,58349.0,1.0]
[1618005438805,0.43595721,58352.0,58349.0,1.0]
[1618005439204,0.43595721,58352.0,58351.0,1.0]
[1618005439404,0.436177,58354.0,58351.0,1.0]
[1618005439604,0.06391003,58352.0,58351.0,1.0]
[1618005439805,0.10725655,58352.0,58348.0,0.24526655]
[1618005440003,0.10725655,58352.0,58351.0,1.0]
[1618005440604,0.46430137,58352.0,58351.0,1.0]
[1618005442007,0.46430137,58352.0,58348.0,0.24526655]
[1618005442008,0.10725655,58352.0,58348.0,0.54954311]
[1618005442206,0.10725655,58352.0,58351.0,1.0]
[1618005443423,0.3574739,58358.0,58357.0,3.3726]
[1618005443613,0.35752813,58359.0,58357.0,3.3726]
[1618005443813,0.46478468,58359.0,58357.0,3.74985655]